bitfinex/quotes_SOLUSD_20250607
["timestamp","ask_amount","ask_price","bid_price","bid_amount"]
[1749278042135,1.6444,151.01,150.97,47.01950162]
[1749278042335,37.56741932,151.02,150.97,47.01950162]
[1749278042336,26.0,151.02,150.99,6.91950162]
[1749278042553,13.54086261,151.03,150.99,6.91950162]
[1749278042554,18.4862291,151.03,150.99,6.91950162]
[1749278042757,39.54086261,151.03,150.99,6.91950162]
[1749278043265,6.62080115,151.04,151.01,6.91950162]
[1749278043560,6.62080115,151.04,151.0,47.01950162]
[1749278044154,13.54030277,151.04,151.0,47.01950162]
[1749278045171,6.91950162,151.02,151.0,40.1]
[1749278047065,13.54120439,151.02,151.0,40.1]
[1749278047562,6.62170277,151.02,151.0,40.1]
[1749278047754,26.0,151.02,151.0,40.1]
[1749278048260,26.0,151.02,151.0,47.01950162]
[1749278049060,6.53628679,151.05,151.01,6.91950162]
[1749278049369,27.5904,151.05,151.01,6.91950162]
[1749278051069,41.13030935,151.05,151.0,129.8]
[1749278051370,41.13030935,151.05,151.0,136.71950162]
[1749278052878,41.13030935,151.05,151.0,143.34195349]
[1749278055381,41.13030935,151.05,151.01,6.91950162]
[1749278058762,27.5904,151.05,151.01,96.61950162]
[1749278058970,34.50990162,151.05,151.01,96.61950162]
[1749278059873,34.50990162,151.05,151.01,89.7]
[1749278060176,27.5904,151.05,151.01,96.61950162]
[1749278060393,32.91950162,151.05,151.01,96.61950162]
[1749278061778,6.61991216,151.06,151.02,6.91950162]
[1749278061779,6.91950162,151.06,151.02,6.91950162]
[1749278061993,6.91950162,151.08,151.04,6.91950162]
[1749278062283,26.0,151.08,151.05,6.91950162]
[1749278062758,7.9481,151.09,151.05,6.91950162]
[1749278063153,33.9481,151.09,151.05,6.91950162]
[1749278063589,47.48626158,151.09,151.05,6.91950162]
[1749278065792,47.48626158,151.09,151.04,6.91950162]
[1749278066693,47.48626158,151.09,151.04,96.61950162]
[1749278068487,47.48626158,151.09,151.05,6.91950162]
[1749278069496,47.48626158,151.09,151.06,40.08]
[1749278075804,40.86760162,151.09,151.06,40.08]
[1749278076098,47.48625384,151.09,151.06,40.08]
[1749278079011,40.86760162,151.09,151.06,40.08]
[1749278079504,34.43180162,151.09,151.06,40.08]
[1749278080384,41.05043031,151.09,151.06,40.08]
[1749278082695,34.43180162,151.09,151.06,40.08]
[1749278083409,26.0,151.09,151.06,46.99950162]
[1749278084208,26.0,151.09,151.07,6.91950162]
[1749278084694,13.53686682,151.12,151.08,6.91950162]
[1749278084883,32.91950162,151.12,151.09,40.08]
[1749278085600,32.6173817,151.12,151.09,40.08]
[1749278086705,39.53688332,151.12,151.09,40.08]
[1749278087012,6.91950162,151.11,151.09,40.08]
[1749278087811,13.53761002,151.11,151.09,40.08]
[1749278088413,6.91950162,151.1,151.09,40.08]
[1749278088596,6.91950162,151.1,151.08,89.7]
[1749278088783,6.91950162,151.09,151.08,89.7]
[1749278089900,13.53807333,151.09,151.08,89.7]
[1749278090205,56.08450261,151.09,151.06,40.08]
[1749278090404,6.91950162,151.07,151.06,40.08]
[1749278091709,13.53894955,151.07,151.06,40.08]
[1749278092693,13.53894955,151.07,151.04,140.02]
[1749278094795,6.91950162,151.07,151.04,140.02]
[1749278095807,13.53923472,151.07,151.04,140.02]
[1749278102305,13.53861898,151.08,151.04,140.02]
[1749278106429,13.53861898,151.08,151.05,40.08]
[1749278120537,6.91950162,151.06,151.04,99.94]
[1749278122126,14.79330162,151.08,151.04,99.94]
[1749278122443,8.53160162,151.08,151.04,106.85950162]
[1749278123515,15.15069763,151.08,151.05,40.08]
[1749278127210,6.91950162,151.06,151.05,40.08]
[1749278127409,6.91950162,151.06,151.04,99.94]
[1749278127922,6.91950162,151.06,151.04,89.7]
[1749278128113,13.53955661,151.06,151.04,89.7]
[1749278131818,13.53955661,151.06,151.03,40.08]
[1749278132815,6.91950162,151.04,151.01,99.94]
[1749278133186,6.91950162,151.03,151.01,10.24]
[1749278133331,6.91950162,151.03,151.01,50.32]
[1749278133634,6.91950162,151.02,151.01,10.24]
[1749278133843,6.622078,151.01,150.97,99.94]
[1749278134042,6.91950162,151.0,150.97,10.24]
[1749278134234,6.91950162,151.0,150.97,50.32]
[1749278134830,13.54157962,151.01,150.97,57.23950162]
[1749278135032,32.0218,151.03,150.98,6.91950162]
[1749278135241,38.94130162,151.03,150.98,6.91950162]
[1749278135440,37.86984471,151.06,151.02,6.91950162]
[1749278135654,32.91950162,151.06,151.03,40.08]
[1749278136725,32.91950162,151.06,151.03,46.70116368]
[1749278136934,26.0,151.06,151.03,46.70116368]
[1749278139449,26.0,151.06,151.03,57.50714691]
[1749278139849,10.80598323,151.07,151.03,57.50714691]
[1749278140231,10.80598323,151.08,151.03,57.50714691]
[1749278140443,36.80598323,151.08,151.03,57.50714691]
[1749278140744,36.80598323,151.08,151.03,147.20714691]
[1749278143743,36.80598323,151.08,151.03,136.40116368]
[1749278143926,36.80598323,151.08,151.04,17.42672147]
[1749278145050,26.0,151.08,151.04,17.42672147]
[1749278145245,36.80598323,151.08,151.04,17.42672147]
[1749278145838,36.80598323,151.08,151.04,100.50598323]
[1749278146046,43.42504276,151.08,151.04,89.7]
[1749278147557,10.80598323,151.07,151.04,89.7]
[1749278154864,10.80598323,151.07,151.05,40.08]
[1749278156467,17.42546016,151.07,151.05,40.08]
[1749278157257,13.53547471,151.07,151.05,40.08]
[1749278157462,6.91599778,151.06,151.04,89.7]
[1749278157666,51.56564664,151.05,150.99,17.15599778]
[1749278157866,6.91599778,151.02,151.0,40.08]
[1749278158077,13.53823484,151.01,150.99,99.94]
[1749278158364,6.91599778,151.0,150.99,99.94]
[1749278158739,6.91599778,151.01,150.99,99.94]
[1749278158937,6.91599778,151.02,150.99,99.94]
[1749278159164,12.66875426,151.03,150.99,99.94]
[1749278159352,10.81309601,151.02,150.99,99.94]
[1749278161566,10.81309601,151.02,150.99,10.24]
[1749278163563,38.39359601,151.04,150.99,27.67592419]
[1749278163765,36.81309601,151.04,151.0,10.81309601]
[1749278163969,36.81309601,151.04,151.01,40.08]
[1749278165152,43.43389589,151.04,151.01,40.08]
[1749278165744,36.81309601,151.04,151.01,40.08]
[1749278167962,26.0,151.04,151.01,40.08]
[1749278168179,36.81309601,151.04,151.01,40.08]
[1749278168771,26.0,151.04,151.01,40.08]
[1749278168980,10.81309601,151.05,151.01,57.51514447]
[1749278169681,10.81309601,151.05,151.01,50.89309601]
[1749278169848,10.81309601,151.06,151.01,57.5151188]
[1749278170049,38.66700521,151.07,151.01,147.2151188]
[1749278170267,10.81309601,151.06,151.01,147.2151188]
[1749278170961,42.86049601,151.07,151.03,10.81309601]
[1749278171164,32.0474,151.07,151.04,40.08]
[1749278172460,26.0,151.07,151.04,40.08]
[1749278172757,26.0,151.07,151.04,50.89309601]
[1749278173852,26.0,151.07,151.04,40.08]
[1749278174053,43.4326538,151.07,151.04,40.08]
[1749278179579,32.61955779,151.07,151.04,40.08]
[1749278180976,43.4326538,151.07,151.04,40.08]
[1749278181183,39.53532545,151.07,151.04,40.08]
[1749278181580,6.91576766,151.06,151.04,40.08]
[1749278182676,6.62032439,151.05,151.04,40.08]
[1749278183790,17.4281203,151.06,151.04,40.08]
[1749278186489,10.80808019,151.05,151.04,40.08]
[1749278186979,17.42840458,151.05,151.04,40.08]
[1749278190496,6.62032439,151.05,151.04,40.08]
[1749278191293,17.42805714,151.06,151.04,40.08]
[1749278192088,26.0,151.05,151.04,40.08]
[1749278193474,43.42753333,151.07,151.04,40.08]
[1749278195796,10.80808019,151.06,151.04,40.08]
[1749278195966,36.80808019,151.05,151.04,40.08]
[1749278197984,43.42840458,151.05,151.04,40.08]
[1749278200806,43.42840458,151.05,151.01,100.50808019]
[1749278200999,43.42840458,151.05,151.02,40.08]
[1749278201502,26.0,151.05,151.02,40.08]
[1749278201704,36.80808019,151.07,151.03,10.80808019]
[1749278202002,32.61959488,151.07,151.03,10.80808019]
[1749278202680,26.0,151.07,151.03,17.42912575]
[1749278202880,26.0,151.07,151.04,10.80808019]
[1749278203087,26.0,151.07,151.05,40.08]
[1749278212896,6.91434036,151.08,151.05,40.08]
[1749278213112,4.95603478,151.11,151.07,6.91434036]
[1749278213291,8.55654036,151.12,151.08,40.06]
[1749278213622,15.17388835,151.12,151.08,40.06]
[1749278213824,20.12957563,151.12,151.08,40.06]
[1749278214023,26.0,151.11,151.08,40.06]
[1749278217494,26.0,151.11,151.08,129.76]
[1749278217695,32.91434036,151.11,151.08,129.76]
[1749278217895,39.53204185,151.11,151.08,129.76]
[1749278221403,32.91434036,151.11,151.08,129.76]
[1749278222715,39.53225957,151.11,151.08,129.76]
[1749278223426,39.53225957,151.11,151.08,40.06]
[1749278226319,26.0,151.11,151.08,40.06]
[1749278226527,26.0,151.11,151.08,46.97434036]
[1749278227615,39.53149394,151.13,151.08,46.97434036]
[1749278227938,26.0,151.13,151.09,6.91434036]
[1749278229438,4.94490429,151.16,151.09,6.91434036]
[1749278229624,6.91434036,151.2,151.15,6.91434036]
[1749278229811,11.85924465,151.22,151.17,6.91434036]
[1749278230217,11.85924465,151.22,151.18,6.91434036]
[1749278230218,32.91434036,151.22,151.18,6.91434036]
[1749278230524,32.91434036,151.22,151.19,40.06]
[1749278230727,26.0,151.22,151.19,40.06]
[1749278230916,21.32994632,151.23,151.19,40.06]
[1749278231125,4.94490429,151.26,151.19,53.58852696]
[1749278231308,13.52578454,151.26,151.21,6.91434036]
[1749278231508,6.91434036,151.25,151.22,40.08]
[1749278231724,6.91434036,151.24,151.22,40.08]
[1749278233336,6.61229312,151.24,151.22,40.08]
[1749278234006,17.39304185,151.24,151.22,40.08]
[1749278234833,6.61229312,151.24,151.22,40.08]
[1749278235942,17.39245399,151.25,151.22,40.08]
[1749278236710,10.78074873,151.24,151.22,40.08]
[1749278236935,17.39292049,151.24,151.22,40.08]
[1749278241832,10.78074873,151.23,151.22,40.08]
[1749278242857,17.39319335,151.23,151.22,40.08]
[1749278243837,10.78074873,151.24,151.22,40.08]
[1749278244941,10.78074873,151.25,151.22,40.08]
[1749278246752,26.0,151.26,151.22,40.08]
[1749278247057,10.78074873,151.24,151.22,40.08]
[1749278249261,17.39231897,151.25,151.22,40.08]
[1749278251369,10.78074873,151.24,151.22,40.08]
[1749278251758,17.39313815,151.24,151.22,40.08]
[1749278256243,10.78074873,151.23,151.22,40.08]
[1749278257275,6.90050224,151.23,151.22,40.08]
[1749278257773,13.51294686,151.23,151.22,40.08]
[1749278258073,6.61244462,151.23,151.22,40.08]
[1749278260342,13.5126265,151.24,151.22,40.08]
[1749278260666,6.61212426,151.24,151.22,40.08]
[1749278263883,13.51222953,151.25,151.22,40.08]
[1749278266855,6.90050224,151.24,151.22,40.08]
[1749278267577,13.51286742,151.24,151.22,40.08]
[1749278269254,13.51207248,151.25,151.22,40.08]
[1749278270658,13.51276039,151.24,151.22,40.08]
[1749278271078,6.61225815,151.24,151.22,40.08]
[1749278273868,6.61157024,151.25,151.22,40.08]
[1749278279102,13.51207248,151.25,151.22,40.08]
[1749278279803,32.61125807,151.26,151.22,46.98050224]
[1749278280007,4.9577056,151.25,151.22,46.98050224]
[1749278280210,39.51176031,151.26,151.22,46.98050224]
[1749278280505,4.95783292,151.25,151.22,46.98050224]
[1749278280802,39.51176031,151.26,151.22,46.98050224]
[1749278281107,4.95783814,151.25,151.22,46.98050224]
[1749278281282,39.51176031,151.26,151.22,46.98050224]
[1749278281483,26.0,151.26,151.24,6.90050224]
[1749278281682,6.60982219,151.29,151.24,6.90050224]
[1749278281914,4.95745804,151.28,151.25,50.24]
[1749278282080,4.95616792,151.3,151.27,6.90050224]
[1749278282284,6.60822111,151.33,151.25,50.24]
[1749278282285,4.95616792,151.32,151.29,6.90050224]
[1749278282510,26.0,151.3,151.29,6.90050224]
[1749278283283,6.60822111,151.33,151.29,6.90050224]
[1749278283605,30.9468878,151.32,151.29,6.90050224]
[1749278283803,30.94688684,151.32,151.29,6.90050224]
[1749278284310,26.0,151.32,151.29,6.90050224]
[1749278284477,32.60857915,151.32,151.29,6.90050224]
[1749278284677,6.60857915,151.32,151.29,6.90050224]
[1749278284879,6.60857915,151.32,151.28,129.72]
[1749278284880,37.55546599,151.32,151.28,136.62050224]
[1749278285314,37.55546599,151.32,151.28,140.49014845]
[1749278286304,32.60857915,151.32,151.28,140.49014845]
[1749278287887,32.60857915,151.32,151.29,10.77014845]
[1749278288805,17.37835436,151.33,151.29,10.77014845]
[1749278288990,10.77014845,151.34,151.3,10.77014845]
[1749278289305,36.77014845,151.34,151.31,40.02]
[1749278289514,10.77014845,151.33,151.31,40.02]
[1749278291397,43.37793927,151.34,151.31,40.02]
[1749278293215,32.60779082,151.34,151.31,40.02]
[1749278293519,43.37793927,151.34,151.31,40.02]
[1749278296699,26.0,151.34,151.31,40.02]
[1749278297100,11.55374873,151.36,151.33,10.77014845]
[1749278297309,32.91932625,151.4,151.33,10.77014845]
[1749278297310,10.77014845,151.37,151.33,10.77014845]
[1749278297506,10.77014845,151.34,151.31,89.7]
[1749278297710,36.77014845,151.34,151.32,40.0]
[1749278298000,36.77014845,151.34,151.31,99.9]
[1749278298810,6.60807506,151.33,151.31,99.9]
[1749278300102,17.37822351,151.33,151.31,10.2]
[1749278300298,6.60807506,151.33,151.31,10.2]
[1749278305110,26.0,151.31,151.25,91.2679]
[1749278305423,6.8949498,151.3,151.26,50.2]
[1749278305603,6.8949498,151.29,151.26,50.2]
[1749278305806,6.8949498,151.29,151.26,10.2]
[1749278305999,6.8949498,151.29,151.26,50.2]
[1749278306517,6.61025912,151.28,151.26,10.2]
[1749278308234,6.61025912,151.28,151.25,140.47529714]
[1749278308529,6.61025912,151.28,151.25,129.7]
[1749278308831,6.61025912,151.28,151.25,89.7]
[1749278309034,6.61025912,151.28,151.25,129.7]
[1749278309729,6.61025912,151.28,151.25,89.7]
[1749278309908,6.61025912,151.28,151.25,129.7]
[1749278311343,17.3852275,151.29,151.25,140.47529714]
[1749278311817,17.3852275,151.29,151.25,89.7]
[1749278312017,17.3852275,151.29,151.25,129.7]
[1749278313847,10.77529714,151.28,151.25,129.7]
[1749278314012,6.60993036,151.29,151.24,89.7]
[1749278314013,10.77529714,151.27,151.24,89.7]
[1749278314215,10.77529714,151.25,151.23,89.7]
[1749278316944,17.38698541,151.25,151.23,89.7]
[1749278318148,17.38698541,151.25,151.22,10.2]
[1749278318149,10.77529714,151.24,151.22,10.2]
[1749278318649,17.38698541,151.25,151.22,10.2]
[1749278319060,10.77529714,151.26,151.22,20.97529714]
[1749278319351,10.77529714,151.27,151.22,20.97529714]
[1749278319542,10.77529714,151.26,151.22,20.97529714]
[1749278320152,10.77529714,151.26,151.22,27.58817529]
[1749278320330,10.77529714,151.27,151.23,10.77529714]
[1749278320539,43.3859775,151.28,151.24,10.77529714]
[1749278320736,17.3859775,151.28,151.24,50.77529714]
[1749278320939,43.3859775,151.28,151.24,50.77529714]
[1749278321550,26.0,151.28,151.25,10.77529714]
[1749278323757,26.0,151.28,151.24,147.08692342]
[1749278324949,26.0,151.28,151.24,140.47529714]
[1749278325158,36.77529714,151.28,151.24,140.47529714]
[1749278325341,36.77529714,151.28,151.24,147.08725869]
[1749278325828,36.77529714,151.28,151.24,140.47529714]
[1749278326371,43.38583929,151.28,151.24,129.7]
[1749278326547,10.77529714,151.27,151.24,129.7]
[1749278326859,17.38622636,151.27,151.24,129.7]
[1749278327167,17.38622636,151.27,151.24,40.0]
[1749278328242,10.77529714,151.26,151.24,40.0]
[1749278331365,43.38562251,151.28,151.24,40.0]
[1749278339253,10.77529714,151.27,151.24,40.0]
[1749278341368,39.50705926,151.28,151.24,40.0]
[1749278342865,26.0,151.28,151.24,53.50868791]
[1749278343396,26.0,151.28,151.24,46.89673389]
[1749278344168,32.61030876,151.28,151.24,46.89673389]
[1749278344465,39.50704265,151.28,151.24,40.0]
[1749278345475,32.89673389,151.28,151.24,40.0]
[1749278345763,26.0,151.28,151.24,46.89673389]
[1749278345964,32.89673389,151.3,151.26,6.89673389]
[1749278346135,32.89673389,151.3,151.27,40.0]
[1749278346875,39.42133389,151.32,151.28,6.89673389]
[1749278347260,43.2944878,151.32,151.28,10.7698878]
[1749278348285,49.90306264,151.32,151.28,10.7698878]
[1749278348665,32.5246,151.32,151.28,17.38003237]
[1749278348974,26.0,151.32,151.28,17.38003237]
[1749278349172,26.0,151.32,151.29,10.7698878]
[1749278349375,12.3686878,151.34,151.3,40.0]
[1749278349681,43.3084817,151.34,151.3,40.0]
[1749278351373,38.3686878,151.34,151.3,40.0]
[1749278352178,38.3686878,151.34,151.3,50.7698878]
[1749278353686,44.9763494,151.34,151.3,140.4698878]
[1749278354781,10.7698878,151.33,151.3,129.7]
[1749278356284,27.5988,151.34,151.3,147.07925945]
[1749278356478,26.0,151.34,151.31,10.7698878]
[1749278358161,36.7698878,151.34,151.3,140.4698878]
[1749278359486,26.0,151.34,151.3,140.4698878]
[1749278360365,43.37755987,151.34,151.3,140.4698878]
[1749278361672,17.37715881,151.35,151.3,140.4698878]
[1749278364588,10.7698878,151.33,151.3,129.7]
[1749278365930,17.37802423,151.33,151.3,129.7]
[1749278367192,6.89180263,151.33,151.3,129.7]
[1749278368490,6.89180263,151.32,151.3,129.7]
[1749278370691,13.50048048,151.32,151.3,129.7]
[1749278374321,13.50048048,151.32,151.3,40.0]
[1749278375897,13.50048048,151.32,151.28,89.7]
[1749278375898,6.89180263,151.31,151.28,39.98]
[1749278376204,6.89180263,151.29,151.26,99.9]
[1749278376399,6.89180263,151.27,151.26,89.7]
[1749278376570,50.79044886,151.26,151.18,6.89180263]
[1749278376775,6.89180263,151.22,151.19,39.98]
[1749278377209,10.78407291,151.22,151.19,39.98]
[1749278377897,10.78407291,151.21,151.19,39.98]
[1749278378098,10.78407291,151.21,151.17,10.78407291]
[1749278378417,10.78407291,151.21,151.19,39.98]
[1749278379597,10.78407291,151.22,151.19,39.98]
[1749278381794,10.78407291,151.23,151.19,46.59408848]
[1749278382018,16.92487291,151.26,151.22,10.78407291]
[1749278382219,10.78407291,151.25,151.21,10.78407291]
[1749278382520,10.78407291,151.23,151.19,140.46407291]
[1749278383416,10.78407291,151.22,151.19,129.68]
[1749278384521,10.78407291,151.2,151.16,99.9]
[1749278384818,6.61264799,151.23,151.16,10.2]
[1749278384819,10.78407291,151.19,151.16,10.2]
[1749278384999,10.78407291,151.19,151.17,40.0]
[1749278388217,10.78407291,151.2,151.17,40.0]
[1749278390225,7.7011,151.26,151.19,10.78407291]
[1749278390529,10.78407291,151.23,151.2,40.02]
[1749278391825,26.0,151.24,151.2,40.02]
[1749278392006,36.78407291,151.24,151.2,50.80407291]
[1749278393903,36.78407291,151.24,151.2,57.41771339]
[1749278394407,36.78407291,151.24,151.2,50.80407291]
[1749278395625,10.78407291,151.23,151.2,40.02]
[1749278399038,10.78407291,151.23,151.2,46.63371801]
[1749278399732,26.0,151.24,151.2,46.63371801]
[1749278399924,36.78407291,151.24,151.2,46.63371801]
[1749278400839,32.61241123,151.24,151.2,40.02]
[1749278401014,10.78407291,151.22,151.2,129.52]
[1749278401210,7.7011,151.26,151.2,140.30407291]
[1749278401536,18.48517291,151.26,151.22,10.78407291]
[1749278401836,1.5603,151.26,151.23,50.80407291]
[1749278402138,12.34437291,151.26,151.23,40.02]
[1749278404310,36.78407291,151.27,151.23,50.80407291]
[1749278404640,36.78407291,151.27,151.23,40.02]
[1749278405841,26.0,151.27,151.23,40.02]
[1749278406018,26.0,151.27,151.23,50.80407291]
[1749278406220,36.78407291,151.27,151.23,50.80407291]
[1749278406424,36.78407291,151.27,151.23,57.41649786]
[1749278406924,36.78407291,151.27,151.23,146.91649786]
[1749278408029,43.39479355,151.27,151.23,129.52]
[1749278408941,36.78407291,151.27,151.23,136.13243984]
[1749278409240,36.78407291,151.27,151.23,146.91651275]
[1749278410040,10.78407291,151.28,151.24,10.78407291]
[1749278410350,10.78407291,151.29,151.25,10.78407291]
[1749278410544,10.78407291,151.29,151.24,100.28407291]
[1749278411452,40.59252804,151.3,151.24,100.28407291]
[1749278411654,10.78407291,151.29,151.25,10.78407291]
[1749278413549,17.39412961,151.29,151.25,10.78407291]
[1749278413745,6.6100567,151.29,151.25,10.78407291]
[1749278413920,17.39412961,151.29,151.25,10.78407291]
[1749278415551,6.6100567,151.29,151.25,10.78407291]
[1749278415725,6.6100567,151.29,151.25,100.28407291]
[1749278415925,6.6100567,151.29,151.26,40.0]
[1749278421656,6.6100567,151.29,151.26,129.5]
[1749278424454,26.0,151.3,151.27,10.78407291]
[1749278424638,32.60950106,151.3,151.26,129.5]
[1749278424841,10.78407291,151.29,151.26,129.5]
[1749278426556,17.39402299,151.29,151.26,129.5]
[1749278426941,10.78407291,151.28,151.26,129.5]
[1749278427259,6.89769234,151.27,151.26,89.5]
[1749278427566,6.89769234,151.27,151.25,129.5]
[1749278428350,13.50841925,151.27,151.25,129.5]
[1749278428655,13.50841925,151.27,151.23,99.7]
[1749278428854,13.50841925,151.27,151.24,40.0]
[1749278429631,6.89769234,151.26,151.24,40.0]
[1749278429855,6.89769234,151.25,151.24,89.5]
[1749278431273,10.78132211,151.25,151.24,89.5]
[1749278433506,17.39318239,151.25,151.22,129.5]
[1749278433655,10.78132211,151.24,151.22,129.5]
[1749278436860,17.39318239,151.25,151.22,129.5]
[1749278438689,17.39251701,151.26,151.22,129.5]
[1749278438869,17.39251701,151.26,151.22,140.28132211]
[1749278440568,17.39251701,151.26,151.23,40.0]
[1749278441874,10.78132211,151.26,151.23,40.0]
[1749278444488,32.61073827,151.27,151.23,50.78132211]
[1749278444680,32.61073827,151.27,151.24,10.78132211]
[1749278445266,43.39206038,151.27,151.24,89.5]
[1749278447564,36.78132211,151.27,151.24,89.5]
[1749278448882,36.78132211,151.27,151.25,40.0]
[1749278450697,43.39220534,151.27,151.25,40.0]
[1749278451200,39.50864158,151.27,151.25,129.5]
[1749278460398,44.45896211,151.27,151.25,129.5]
[1749278460605,6.89775835,151.26,151.25,129.5]
[1749278460791,30.49818648,151.26,151.25,89.5]
[1749278461304,26.0,151.23,151.21,40.0]
[1749278461477,6.89775835,151.22,151.21,40.0]
[1749278462179,13.51064024,151.22,151.21,40.0]
[1749278463108,6.89775835,151.22,151.21,40.0]
[1749278464075,32.61259277,151.23,151.21,40.0]
[1749278464076,26.0,151.23,151.21,40.0]
[1749278466015,26.0,151.23,151.21,129.5]
[1749278468226,26.0,151.23,151.21,136.39775835]
[1749278468527,26.0,151.23,151.21,129.5]
[1749278471828,26.0,151.25,151.22,6.89775835]
[1749278472125,6.89775835,151.26,151.23,40.0]
[1749278472325,6.89775835,151.25,151.23,40.0]
[1749278473625,26.0,151.26,151.23,40.0]
[1749278473804,32.89775835,151.26,151.23,40.0]
[1749278475104,26.0,151.26,151.23,40.0]
[1749278476235,26.0,151.26,151.23,46.89775835]
[1749278477313,26.0,151.26,151.23,40.0]
[1749278477929,26.0,151.26,151.23,129.5]
[1749278478229,26.0,151.26,151.23,136.39775835]
[1749278478437,26.0,151.26,151.23,129.5]
[1749278478614,32.89775835,151.26,151.23,129.5]
[1749278480140,39.50890953,151.26,151.23,129.5]
[1749278481313,6.89775835,151.25,151.23,129.5]
[1749278483345,6.6120074,151.24,151.23,89.5]
[1749278483524,6.6120074,151.24,151.22,129.5]
[1749278487343,13.50940634,151.25,151.22,129.5]
[1749278490121,13.50940634,151.25,151.22,89.5]
[1749278490122,32.89775835,151.23,151.22,89.5]
[1749278492037,39.51020297,151.23,151.22,89.5]
[1749278492646,39.51020297,151.23,151.2,139.7]
[1749278492823,6.89775835,151.21,151.2,99.7]
[1749278494116,13.51107757,151.21,151.2,99.7]
[1749278494535,13.51107757,151.21,151.2,89.5]
[1749278494737,13.51107757,151.21,151.19,40.0]
[1749278494938,6.89775835,151.2,151.19,129.5]
[1749278495146,6.89775835,151.21,151.19,129.5]
[1749278495946,6.89775835,151.21,151.19,89.5]
[1749278496152,6.89775835,151.21,151.19,129.5]
[1749278500645,6.61288189,151.22,151.19,129.5]
[1749278500850,6.89775835,151.21,151.19,129.5]
[1749278502749,26.0,151.23,151.19,136.39775835]
[1749278503052,6.89775835,151.24,151.2,6.89775835]
[1749278503347,26.0,151.22,151.21,40.0]
[1749278505149,32.89775835,151.22,151.21,40.0]
[1749278505338,39.51079372,151.22,151.2,129.5]
[1749278505537,6.89775835,151.21,151.2,129.5]
[1749278506244,39.51079372,151.22,151.2,129.5]
[1749278506560,32.89775835,151.22,151.2,129.5]
[1749278506740,26.0,151.22,151.2,129.5]
[1749278507362,32.89775835,151.22,151.2,129.5]
[1749278507552,32.89775835,151.22,151.2,40.0]
[1749278507863,26.0,151.22,151.2,40.0]
[1749278508065,32.89775835,151.22,151.2,40.0]
[1749278508739,32.61297596,151.22,151.2,40.0]
[1749278509859,39.51073431,151.22,151.2,40.0]
[1749278510661,26.0,151.22,151.2,40.0]
[1749278510966,26.0,151.22,151.2,46.89775835]
[1749278511148,1.5311,151.25,151.21,6.89775835]
[1749278511343,26.0,151.23,151.21,96.39775835]
[1749278511537,26.0,151.23,151.21,99.7]
[1749278516173,26.0,151.23,151.21,106.31329197]
[1749278516477,26.0,151.24,151.21,106.31329197]
[1749278518762,26.0,151.24,151.21,99.7]
[1749278520776,43.39266982,151.24,151.21,99.7]
[1749278520953,10.78060954,151.23,151.21,99.7]
[1749278521150,10.78060954,151.23,151.21,139.7]
[1749278521354,43.39266982,151.24,151.21,139.7]
[1749278522275,43.39266982,151.24,151.21,50.2]
[1749278524175,43.39266982,151.24,151.21,40.0]
[1749278528180,43.39266982,151.24,151.21,129.5]
[1749278535396,39.51315224,151.24,151.21,129.5]
[1749278536874,6.90109196,151.23,151.21,129.5]
[1749278538681,6.61288189,151.22,151.21,129.5]
[1749278540193,6.61288189,151.22,151.21,40.0]
[1749278543618,13.51397385,151.22,151.21,40.0]
[1749278544403,6.61288189,151.22,151.21,40.0]
[1749278545483,6.61288189,151.22,151.2,40.0]
[1749278546000,6.61288189,151.22,151.2,129.5]
[1749278549692,6.90109196,151.22,151.2,129.5]
[1749278549889,13.51353658,151.23,151.2,129.5]
[1749278551991,6.61331922,151.21,151.2,129.5]
[1749278553515,44.46875351,151.21,151.2,89.5]
[1749278553696,39.51441118,151.21,151.2,89.5]